Workbook

Sheet ahlamine
G3: وزارة التربية الوطنية | O3: نقط الامتحان للأسدس الاول | T3: إقليم: القنيطرة في | Y3: 2019-01-23
G4: أكاديمية التربية والتكوين | L4: : السنة الدراسية | O4: 2018/2019
G5: الرباط - سلا - القنيطرة
C6: : المديرية الإقليمية | G6: إقليم: القنيطرة | T6: : الدورة | Y6: الدورة الأولى
C7: : مؤسسة | G7: الثانوية الاعدادية سيدي الطيبي
C8: : المستوى | G8: الثالثة إعدادي عام | L8: : القسم | O8: 3ASCG-6 | T8: : عدد التلاميذ | Y8: 35
B11: رقم التلميذ | D11: اسم التلميذ | E11: اللغة العربية | F11: اللغة الفرنسية | H11: اللغة الإنجليزية | I11: الاجتماعيات | J11: الرياضيات | K11: علوم الحياة والأرض | M11: الفيزياء والكيمياء | N11: التربية الإسلامية | P11: التربية البدنية | Q11: المعدل | AB11: المعدل | AC11: الرتبة | AD11: قرار القسم
B12: E100073522 | D12: أهلمين1 | E12: 14.5 | F12: 11 | H12: 19 | I12: 11 | J12: 14 | K12: 9.5 | M12: 15 | N12: 18.5 | P12: 15.5 | Q12: 14.22 | AB12: =IF(ISBLANK(IF($AB$11=$B$11,B12,IF($AB$11=$C$11,C12,IF($AB$11=$D$11,D12,IF($AB$11=$E$11,E12,IF($AB$11=$F$11,F12,IF($AB$11=$G$11,G12,IF($AB$11=$H$11,H12,IF($AB$11=$I$11,I12,IF($AB$11=$J$11,J12,IF($AB$11=$K$11,K12,IF($AB$11=$L$11,I12,IF($AB$11=$M$11,M12,IF($AB$11=$N$111,N12,IF($AB$11=$O$11,O12,IF($AB$11=$P$11,P12,IF($AB$11=$Q$11,Q12,IF($AB$11=$R$11,R12,IF($AB$11=$S$11,S12,IF($AB$11=$T$11,T12,IF($AB$11=$U$11,U12,IF($AB$11=$V$11,V12,IF($AB$11=$W$11,W12,IF($AB$11=$X$11,X12,"x"))))))))))))))))))))))))," ",IF($AB$11=$B$11,B12,IF($AB$11=$C$11,C12,IF($AB$11=$D$11,D12,IF($AB$11=$E$11,E12,IF($AB$11=$F$11,F12,IF($AB$11=$G$11,G12,IF($AB$11=$H$11,H12,IF($AB$11=$I$11,I12,IF($AB$11=$J$11,J12,IF($AB$11=$K$11,K12,IF($AB$11=$L$11,I12,IF($AB$11=$M$11,M12,IF($AB$11=$N$111,N12,IF($AB$11=$O$11,O12,IF($AB$11=$P$11,P12,IF($AB$11=$Q$11,Q12,IF($AB$11=$R$11,R12,IF($AB$11=$S$11,S12,IF($AB$11=$T$11,T12,IF($AB$11=$U$11,U12,IF($AB$11=$V$11,V12,IF($AB$11=$W$11,W12,IF($AB$11=$X$11,X12,"x")))))))))))))))))))))))) -> 14.22 | AC12: =IFERROR(RANK(AB12,mahlamine)+COUNTIF($AB$12:AB12,AB12)-1," ") -> 3 | AD12: =IF(ISBLANK(AB12)," ",IF(AB12<=5,"توبيخ",IF(AND(AB12>=5.01,AB12<=6),"إنذار",IF(AND(AB12>=6.01,AB12<=8),"تنبيه",IF(AND(AB12>=12,AB12<=13.99),"لوحة الشرف",IF(AND(AB12>=14,AB12<=15.99),"تشجيع",IF(AND(AB12>=16,AB12<=19.99),"تنويه",""))))))) -> تشجيع
B13: E100083276 | D13: أهلمين2 | E13: 10.5 | F13: 10.5 | H13: 11 | I13: 10.5 | J13: 2 | K13: 16 | M13: 12.5 | N13: 18 | P13: 14 | Q13: 11.67 | AB13: =IF(ISBLANK(IF($AB$11=$B$11,B13,IF($AB$11=$C$11,C13,IF($AB$11=$D$11,D13,IF($AB$11=$E$11,E13,IF($AB$11=$F$11,F13,IF($AB$11=$G$11,G13,IF($AB$11=$H$11,H13,IF($AB$11=$I$11,I13,IF($AB$11=$J$11,J13,IF($AB$11=$K$11,K13,IF($AB$11=$L$11,I13,IF($AB$11=$M$11,M13,IF($AB$11=$N$111,N13,IF($AB$11=$O$11,O13,IF($AB$11=$P$11,P13,IF($AB$11=$Q$11,Q13,IF($AB$11=$R$11,R13,IF($AB$11=$S$11,S13,IF($AB$11=$T$11,T13,IF($AB$11=$U$11,U13,IF($AB$11=$V$11,V13,IF($AB$11=$W$11,W13,IF($AB$11=$X$11,X13,"x"))))))))))))))))))))))))," ",IF($AB$11=$B$11,B13,IF($AB$11=$C$11,C13,IF($AB$11=$D$11,D13,IF($AB$11=$E$11,E13,IF($AB$11=$F$11,F13,IF($AB$11=$G$11,G13,IF($AB$11=$H$11,H13,IF($AB$11=$I$11,I13,IF($AB$11=$J$11,J13,IF($AB$11=$K$11,K13,IF($AB$11=$L$11,I13,IF($AB$11=$M$11,M13,IF($AB$11=$N$111,N13,IF($AB$11=$O$11,O13,IF($AB$11=$P$11,P13,IF($AB$11=$Q$11,Q13,IF($AB$11=$R$11,R13,IF($AB$11=$S$11,S13,IF($AB$11=$T$11,T13,IF($AB$11=$U$11,U13,IF($AB$11=$V$11,V13,IF($AB$11=$W$11,W13,IF($AB$11=$X$11,X13,"x")))))))))))))))))))))))) -> 11.67 | AC13: =IFERROR(RANK(AB13,mahlamine)+COUNTIF($AB$12:AB13,AB13)-1," ") -> 11 | AD13: =IF(ISBLANK(AB13)," ",IF(AB13<=5,"توبيخ",IF(AND(AB13>=5.01,AB13<=6),"إنذار",IF(AND(AB13>=6.01,AB13<=8),"تنبيه",IF(AND(AB13>=12,AB13<=13.99),"لوحة الشرف",IF(AND(AB13>=14,AB13<=15.99),"تشجيع",IF(AND(AB13>=16,AB13<=19.99),"تنويه",""))))))) -> 
B14: E130037603 | D14: أهلمين3 | E14: 5 | F14: 7 | H14: 6.5 | I14: 7.5 | J14: 10.75 | K14: 10.5 | M14: 11.5 | N14: 10.5 | P14: 17 | Q14: 9.58 | AB14: 9.58 | AC14: =IFERROR(RANK(AB14,mahlamine)+COUNTIF($AB$12:AB14,AB14)-1," ") -> 22
B15: E131266492 | D15: أهلمين4 | E15: 6 | F15: 13 | H15: 14.5 | I15: 7 | J15: 3.75 | K15: 5 | M15: 7.5 | N15: 7.5 | P15: 15 | Q15: 8.81 | AB15: 8.81 | AC15: =IFERROR(RANK(AB15,mahlamine)+COUNTIF($AB$12:AB15,AB15)-1," ") -> 26
B16: E132035257 | D16: أهلمين5 | E16: 12.25 | F16: 8 | H16: 6.5 | I16: 14.5 | J16: 12.75 | K16: 6 | M16: 12 | N16: 14.5 | P16: 12 | Q16: 10.94 | AB16: 10.94 | AC16: =IFERROR(RANK(AB16,mahlamine)+COUNTIF($AB$12:AB16,AB16)-1," ") -> 16
B17: E132265459 | D17: أهلمين6 | E17: 8.5 | F17: 3 | H17: 6 | I17: 5 | J17: 8.75 | K17: 7 | M17: 9.5 | N17: 15.5 | P17: 14 | Q17: 8.58 | AB17: 8.58 | AC17: =IFERROR(RANK(AB17,mahlamine)+COUNTIF($AB$12:AB17,AB17)-1," ") -> 29
B18: E133265483 | D18: أهلمين7 | E18: 17 | F18: 17.5 | H18: 16.5 | I18: 17 | J18: 18.25 | K18: 19 | M18: 17.5 | N18: 19.5 | P18: 14 | Q18: 17.36 | AB18: 17.36 | AC18: =IFERROR(RANK(AB18,mahlamine)+COUNTIF($AB$12:AB18,AB18)-1," ") -> 1 | AD18: تنويه
B19: E133266546 | D19: أهلمين8 | E19: 12 | F19: 12.5 | H19: 14.5 | I19: 7.5 | J19: 7 | K19: 5 | M19: 11.5 | N19: 16 | P19: 13 | Q19: 11 | AB19: 11 | AC19: =IFERROR(RANK(AB19,mahlamine)+COUNTIF($AB$12:AB19,AB19)-1," ") -> 15
B20: E135266531 | D20: أهلمين9 | E20: 10.5 | F20: 9 | H20: 13 | I20: 11.5 | J20: 11.75 | K20: 7.5 | M20: 12 | N20: 15.5 | P20: 14 | Q20: 11.64 | AB20: 11.64 | AC20: =IFERROR(RANK(AB20,mahlamine)+COUNTIF($AB$12:AB20,AB20)-1," ") -> 12
B21: E136266534 | D21: أهلمين10 | E21: 5 | F21: 5 | H21: 7.5 | I21: 10 | J21: 3 | K21: 7.5 | M21: 11 | N21: 9 | P21: 16 | Q21: 8.22 | AB21: 8.22 | AC21: =IFERROR(RANK(AB21,mahlamine)+COUNTIF($AB$12:AB21,AB21)-1," ") -> 31
B22: E138037226 | D22: أهلمين11 | E22: 15 | F22: 12 | H22: 15 | I22: 9 | J22: 10 | K22: 6.5 | M22: 13.5 | N22: 18.5 | P22: 16 | Q22: 12.83 | AB22: 12.83 | AC22: =IFERROR(RANK(AB22,mahlamine)+COUNTIF($AB$12:AB22,AB22)-1," ") -> 7 | AD22: لوحة الشرف
B23: E139265471 | D23: أهلمين12 | E23: 18 | F23: 17 | H23: 14 | I23: 9 | J23: 18.25 | K23: 16.5 | M23: 17 | N23: 20 | P23: 14 | Q23: 15.97 | AB23: 15.97 | AC23: =IFERROR(RANK(AB23,mahlamine)+COUNTIF($AB$12:AB23,AB23)-1," ") -> 2 | AD23: تشجيع
B24: E139265740 | D24: أهلمين13 | E24: 3.5 | F24: 1.5 | H24: 9 | I24: 4 | J24: 2.5 | K24: 5.5 | M24: 14 | N24: 16.5 | P24: 17 | Q24: 8.17 | AB24: 8.17 | AC24: =IFERROR(RANK(AB24,mahlamine)+COUNTIF($AB$12:AB24,AB24)-1," ") -> 32
B25: E140047850 | D25: أهلمين14 | E25: 17.5 | F25: 14 | H25: 15 | I25: 11.5 | J25: 12.25 | K25: 12.75 | M25: 14 | N25: 16.5 | P25: 14 | Q25: 14.17 | AB25: 14.17 | AC25: =IFERROR(RANK(AB25,mahlamine)+COUNTIF($AB$12:AB25,AB25)-1," ") -> 4 | AD25: تشجيع
B26: E140049240 | D26: أهلمين15 | E26: 10 | F26: 7.5 | H26: 6.5 | I26: 9 | J26: 2.5 | K26: 2.5 | M26: 10 | N26: 12 | P26: 18 | Q26: 8.67 | AB26: 8.67 | AC26: =IFERROR(RANK(AB26,mahlamine)+COUNTIF($AB$12:AB26,AB26)-1," ") -> 28
B27: E141003196 | D27: أهلمين16 | E27: 10.25 | F27: 7 | H27: 17 | I27: 13.5 | J27: 5 | K27: 12.5 | M27: 12.5 | N27: 15 | P27: 16 | Q27: 12.08 | AB27: 12.08 | AC27: =IFERROR(RANK(AB27,mahlamine)+COUNTIF($AB$12:AB27,AB27)-1," ") -> 9 | AD27: لوحة الشرف
B28: E141097841 | D28: أهلمين17 | E28: 2.5 | F28: 3.5 | H28: 10 | I28: 2 | J28: 0.5 | K28: 4.5 | M28: 8 | N28: 8 | P28: 18 | Q28: 6.33 | AB28: 6.33 | AC28: =IFERROR(RANK(AB28,mahlamine)+COUNTIF($AB$12:AB28,AB28)-1," ") -> 35 | AD28: تنبيه
B29: E142047838 | D29: أهلمين18 | E29: 14 | F29: 11.5 | H29: 6.5 | I29: 14 | J29: 7.25 | K29: 10.5 | M29: 17.5 | N29: 17 | P29: 15.5 | Q29: 12.64 | AB29: 12.64 | AC29: =IFERROR(RANK(AB29,mahlamine)+COUNTIF($AB$12:AB29,AB29)-1," ") -> 8 | AD29: لوحة الشرف
B30: E143003232 | D30: أهلمين19 | E30: 5.5 | F30: 15.5 | H30: 11 | I30: 4 | J30: 7.25 | K30: 6.5 | M30: 11 | N30: 17 | P30: 13 | Q30: 10.08 | AB30: 10.08 | AC30: =IFERROR(RANK(AB30,mahlamine)+COUNTIF($AB$12:AB30,AB30)-1," ") -> 20
B31: E144095054 | D31: أهلمين20 | E31: 8.5 | F31: 7.5 | H31: 13 | I31: 9.5 | J31: 2.5 | K31: 6.5 | M31: 14 | N31: 10 | P31: 14 | Q31: 9.5 | AB31: 9.5 | AC31: =IFERROR(RANK(AB31,mahlamine)+COUNTIF($AB$12:AB31,AB31)-1," ") -> 23
B32: E145048548 | D32: أهلمين21 | E32: 7.5 | F32: 10 | H32: 13.5 | I32: 12 | J32: 15.25 | K32: 16 | M32: 14 | N32: 17 | P32: 14 | Q32: 13.25 | AB32: 13.25 | AC32: =IFERROR(RANK(AB32,mahlamine)+COUNTIF($AB$12:AB32,AB32)-1," ") -> 5 | AD32: لوحة الشرف
B33: E146047819 | D33: أهلمين22 | E33: 6.75 | F33: 8 | H33: 6 | I33: 6.5 | J33: 2.25 | K33: 5.5 | M33: 8.5 | N33: 1 | P33: 14 | Q33: 6.5 | AB33: 6.5 | AC33: =IFERROR(RANK(AB33,mahlamine)+COUNTIF($AB$12:AB33,AB33)-1," ") -> 34 | AD33: تنبيه
B34: E146048574 | D34: أهلمين23 | E34: 6 | F34: 4 | H34: 10 | I34: 4.5 | J34: 1.5 | K34: 6 | M34: 9.5 | N34: 10.5 | P34: 16 | Q34: 7.56 | AB34: 7.56 | AC34: =IFERROR(RANK(AB34,mahlamine)+COUNTIF($AB$12:AB34,AB34)-1," ") -> 33 | AD34: تنبيه
B35: E147000374 | D35: أهلمين24 | E35: 13 | F35: 5 | H35: 11.5 | I35: 11 | J35: 13.75 | K35: 15.75 | M35: 16.5 | N35: 18.5 | P35: 13 | Q35: 13.11 | AB35: 13.11 | AC35: =IFERROR(RANK(AB35,mahlamine)+COUNTIF($AB$12:AB35,AB35)-1," ") -> 6 | AD35: لوحة الشرف
B36: E147047771 | D36: أهلمين25 | E36: 9.25 | F36: 9 | H36: 10.5 | I36: 5 | J36: 4 | K36: 7 | M36: 7.5 | N36: 8 | P36: 15 | Q36: 8.36 | AB36: 8.36 | AC36: =IFERROR(RANK(AB36,mahlamine)+COUNTIF($AB$12:AB36,AB36)-1," ") -> 30
B37: E147048111 | D37: أهلمين26 | E37: 12 | F37: 8 | H37: 14.5 | I37: 3.5 | J37: 3.5 | K37: 9.5 | M37: 14 | N37: 15 | P37: 12 | Q37: 10.22 | AB37: 10.22 | AC37: =IFERROR(RANK(AB37,mahlamine)+COUNTIF($AB$12:AB37,AB37)-1," ") -> 18
B38: E147064868 | D38: أهلمين27 | E38: 10 | F38: 6.5 | H38: 12.5 | I38: 14 | J38: 0.5 | K38: 10.5 | M38: 9 | N38: 13 | P38: 16.5 | Q38: 10.28 | AB38: 10.28 | AC38: =IFERROR(RANK(AB38,mahlamine)+COUNTIF($AB$12:AB38,AB38)-1," ") -> 17
B39: E147097805 | D39: أهلمين28 | E39: 6.5 | F39: 6.5 | H39: 9.5 | I39: 8 | J39: 11 | K39: 16.75 | M39: 16 | N39: 15.5 | P39: 16 | Q39: 11.75 | AB39: 11.75 | AC39: =IFERROR(RANK(AB39,mahlamine)+COUNTIF($AB$12:AB39,AB39)-1," ") -> 10
B40: E149029301 | D40: أهلمين29 | E40: 11 | F40: 8 | H40: 13 | I40: 5 | J40: 6.75 | K40: 8 | M40: 15 | N40: 19.5 | P40: 16 | Q40: 11.36 | AB40: 11.36 | AC40: =IFERROR(RANK(AB40,mahlamine)+COUNTIF($AB$12:AB40,AB40)-1," ") -> 13
B41: E149048581 | D41: أهلمين30 | E41: 5.75 | F41: 9.5 | H41: 10.5 | I41: 6.5 | J41: 11.75 | K41: 11.5 | M41: 11.5 | N41: 16 | P41: 17 | Q41: 11.11 | AB41: 11.11 | AC41: =IFERROR(RANK(AB41,mahlamine)+COUNTIF($AB$12:AB41,AB41)-1," ") -> 14
B42: E149097355 | D42: أهلمين31 | E42: 5.5 | F42: 11 | H42: 6.5 | I42: 10.5 | J42: 2 | K42: 6 | M42: 18.5 | N42: 17.5 | P42: 13 | Q42: 10.06 | AB42: 10.06 | AC42: =IFERROR(RANK(AB42,mahlamine)+COUNTIF($AB$12:AB42,AB42)-1," ") -> 21
B43: F132058860 | D43: أهلمين32 | E43: 5 | F43: 7 | H43: 11.5 | I43: 6.5 | J43: 3.25 | K43: 8.5 | M43: 12.5 | N43: 13 | P43: 12 | Q43: 8.81 | AB43: 8.81 | AC43: =IFERROR(RANK(AB43,mahlamine)+COUNTIF($AB$12:AB43,AB43)-1," ") -> 27
B44: P137162295 | D44: أهلمين33 | E44: 6.5 | F44: 4.5 | H44: 9.5 | I44: 3.5 | J44: 12 | K44: 5.5 | M44: 14.5 | N44: 13.5 | P44: 12 | Q44: 9.06 | AB44: 9.06 | AC44: =IFERROR(RANK(AB44,mahlamine)+COUNTIF($AB$12:AB44,AB44)-1," ") -> 25
B45: S137267816 | D45: أهلمين34 | E45: 9.75 | F45: 4.5 | H45: 11.5 | I45: 9 | J45: 5.75 | K45: 5 | M45: 9 | N45: 17 | P45: 14 | Q45: 9.5 | AB45: 9.5 | AC45: =IFERROR(RANK(AB45,mahlamine)+COUNTIF($AB$12:AB45,AB45)-1," ") -> 24
B46: E136042160 | D46: أهلمين35 | E46: 8.5 | F46: 6.5 | H46: 12.5 | I46: 6.5 | J46: 2.5 | K46: 10.5 | M46: 11.5 | N46: 16.5 | P46: 17 | Q46: 10.22 | AB46: 10.22 | AC46: =IFERROR(RANK(AB46,mahlamine)+COUNTIF($AB$12:AB46,AB46)-1," ") -> 19
AC47: =IFERROR(RANK(AB47,mahlamine)+COUNTIF($AB$12:AB47,AB47)-1," ") -> 
AC48: =IFERROR(RANK(AB48,mahlamine)+COUNTIF($AB$12:AB48,AB48)-1," ") -> 
AC49: =IFERROR(RANK(AB49,mahlamine)+COUNTIF($AB$12:AB49,AB49)-1," ") -> 
AC50: =IFERROR(RANK(AB50,mahlamine)+COUNTIF($AB$12:AB50,AB50)-1," ") -> 
AC51: =IFERROR(RANK(AB51,mahlamine)+COUNTIF($AB$12:AB51,AB51)-1," ") -> 
AC52: =IFERROR(RANK(AB52,mahlamine)+COUNTIF($AB$12:AB52,AB52)-1," ") -> 
AC53: =IFERROR(RANK(AB53,mahlamine)+COUNTIF($AB$12:AB53,AB53)-1," ") -> 
AC54: =IFERROR(RANK(AB54,mahlamine)+COUNTIF($AB$12:AB54,AB54)-1," ") -> 
AC55: =IFERROR(RANK(AB55,mahlamine)+COUNTIF($AB$12:AB55,AB55)-1," ") -> 
AC56: =IFERROR(RANK(AB56,mahlamine)+COUNTIF($AB$12:AB56,AB56)-1," ") -> 
AC57: =IFERROR(RANK(AB57,mahlamine)+COUNTIF($AB$12:AB57,AB57)-1," ") -> 
AC58: =IFERROR(RANK(AB58,mahlamine)+COUNTIF($AB$12:AB58,AB58)-1," ") -> 
AC59: =IFERROR(RANK(AB59,mahlamine)+COUNTIF($AB$12:AB59,AB59)-1," ") -> 
AC60: =IFERROR(RANK(AB60,mahlamine)+COUNTIF($AB$12:AB60,AB60)-1," ") -> 
AC61: =IFERROR(RANK(AB61,mahlamine)+COUNTIF($AB$12:AB61,AB61)-1," ") -> 
AC62: =IFERROR(RANK(AB62,mahlamine)+COUNTIF($AB$12:AB62,AB62)-1," ") -> 
AC63: =IFERROR(RANK(AB63,mahlamine)+COUNTIF($AB$12:AB63,AB63)-1," ") -> 
AC64: =IFERROR(RANK(AB64,mahlamine)+COUNTIF($AB$12:AB64,AB64)-1," ") -> 
AC65: =IFERROR(RANK(AB65,mahlamine)+COUNTIF($AB$12:AB65,AB65)-1," ") -> 
AC66: =IFERROR(RANK(AB66,mahlamine)+COUNTIF($AB$12:AB66,AB66)-1," ") -> 
AC67: =IFERROR(RANK(AB67,mahlamine)+COUNTIF($AB$12:AB67,AB67)-1," ") -> 

Sheet الإستثمار
A1: أهلمين
G2: https://web.facebook.com/mohammed.ahlamine.7 | O2: tel: 0667177403
B3: من مسار حمل معدلات المراقبة المستمرة و الإمتحان لأقسامك المسندة كما هي..إجمعهم في ملف واحد مع تطبيقي هذا
B4: إفتح التطبيق و فعل الرسائل الماكرو و تابع العمليات بالترتيب جلب+تعديل+الإستثمار...وعدل منطقة الطباعة بحرية وسهولة ...مبروك عليك
A6: =ahlamine!C6 -> : المديرية الإقليمية | C6: =ahlamine!G6 -> إقليم: القنيطرة
A7: =ahlamine!C7 -> : مؤسسة | C7: =ahlamine!G7 -> الثانوية الاعدادية سيدي الطيبي
A8: =ahlamine!C8 -> : المستوى | C8: =ahlamine!G8 -> الثالثة إعدادي عام | F8: =ahlamine!O3 -> نقط الامتحان للأسدس الاول
E10: =ahlamine!L4 -> : السنة الدراسية | F10: =ahlamine!O4 -> 2018/2019
E11: =ahlamine!T8 -> : عدد التلاميذ | F11: =ahlamine!Y8 -> 35
A13: =ahlamine!O8 -> 3ASCG-6 | E13: =ahlamine!E11 -> اللغة العربية | F13: =ahlamine!F11 -> اللغة الفرنسية | G13: =ahlamine!G11 -> 0 | H13: =ahlamine!H11 -> اللغة الإنجليزية | I13: =ahlamine!I11 -> الاجتماعيات | J13: =ahlamine!J11 -> الرياضيات | K13: =ahlamine!K11 -> علوم الحياة والأرض | L13: =ahlamine!L11 -> 0 | M13: =ahlamine!M11 -> الفيزياء والكيمياء | N13: =ahlamine!N11 -> التربية الإسلامية | O13: =ahlamine!O11 -> 0 | P13: =ahlamine!P11 -> التربية البدنية | Q13: =ahlamine!Q11 -> المعدل | R13: =ahlamine!R11 -> 0 | S13: =ahlamine!S11 -> 0 | T13: =ahlamine!T11 -> 0 | U13: =ahlamine!U11 -> 0 | V13: =ahlamine!V11 -> 0
A14: إحصائيات | C14: أعلى نقطة | E14: =MAX(ahlamine!E10:E70) -> 18 | F14: =MAX(ahlamine!F10:F70) -> 17.5 | G14: =MAX(ahlamine!G10:G70) -> 0 | H14: =MAX(ahlamine!H10:H70) -> 19 | I14: =MAX(ahlamine!I10:I70) -> 17 | J14: =MAX(ahlamine!J10:J70) -> 18.25 | K14: =MAX(ahlamine!K10:K70) -> 19 | L14: =MAX(ahlamine!L10:L70) -> 0 | M14: =MAX(ahlamine!M10:M70) -> 18.5 | N14: =MAX(ahlamine!N10:N70) -> 20 | O14: =MAX(ahlamine!O10:O70) -> 0 | P14: =MAX(ahlamine!P10:P70) -> 18 | Q14: =MAX(ahlamine!Q10:Q70) -> 17.36 | R14: =MAX(ahlamine!R10:R70) -> 0 | S14: =MAX(ahlamine!S10:S70) -> 0 | T14: =MAX(ahlamine!T10:T70) -> 0 | U14: =MAX(ahlamine!U10:U70) -> 0 | V14: =MAX(ahlamine!V10:V70) -> 0
C15: أدنى نقطة | E15: =MIN(ahlamine!E10:E70) -> 2.5 | F15: =MIN(ahlamine!F10:F70) -> 1.5 | G15: =MIN(ahlamine!G10:G70) -> 0 | H15: =MIN(ahlamine!H10:H70) -> 6 | I15: =MIN(ahlamine!I10:I70) -> 2 | J15: =MIN(ahlamine!J10:J70) -> 0.5 | K15: =MIN(ahlamine!K10:K70) -> 2.5 | L15: =MIN(ahlamine!L10:L70) -> 0 | M15: =MIN(ahlamine!M10:M70) -> 7.5 | N15: =MIN(ahlamine!N10:N70) -> 1 | O15: =MIN(ahlamine!O10:O70) -> 0 | P15: =MIN(ahlamine!P10:P70) -> 12 | Q15: =MIN(ahlamine!Q10:Q70) -> 6.33 | R15: =MIN(ahlamine!R10:R70) -> 0 | S15: =MIN(ahlamine!S10:S70) -> 0 | T15: =MIN(ahlamine!T10:T70) -> 0 | U15: =MIN(ahlamine!U10:U70) -> 0 | V15: =MIN(ahlamine!V10:V70) -> 0
C16: ما بين 16 و 20 | E16: =COUNTIF(ahlamine!E10:E70,">=16") -> 3 | F16: =COUNTIF(ahlamine!F10:F70,">=16") -> 2 | G16: =COUNTIF(ahlamine!G10:G70,">=16") -> 0 | H16: =COUNTIF(ahlamine!H10:H70,">=16") -> 3 | I16: =COUNTIF(ahlamine!I10:I70,">=16") -> 1 | J16: =COUNTIF(ahlamine!J10:J70,">=16") -> 2 | K16: =COUNTIF(ahlamine!K10:K70,">=16") -> 5 | L16: =COUNTIF(ahlamine!L10:L70,">=16") -> 0 | M16: =COUNTIF(ahlamine!M10:M70,">=16") -> 6 | N16: =COUNTIF(ahlamine!N10:N70,">=16") -> 17 | O16: =COUNTIF(ahlamine!O10:O70,">=16") -> 0 | P16: =COUNTIF(ahlamine!P10:P70,">=16") -> 13 | Q16: =COUNTIF(ahlamine!Q10:Q70,">=16") -> 1 | R16: =COUNTIF(ahlamine!R10:R70,">=16") -> 0 | S16: =COUNTIF(ahlamine!S10:S70,">=16") -> 0 | T16: =COUNTIF(ahlamine!T10:T70,">=16") -> 0 | U16: =COUNTIF(ahlamine!U10:U70,">=16") -> 0 | V16: =COUNTIF(ahlamine!V10:V70,">=16") -> 0
C17: ما بين 14 و 16 | E17: =COUNTIF(ahlamine!E10:E70,"<16")-(E18+E19+E20+E21+E22) -> 3 | F17: =COUNTIF(ahlamine!F10:F70,"<16")-(F18+F19+F20+F21+F22) -> 2 | G17: =COUNTIF(ahlamine!G10:G70,"<16")-(G18+G19+G20+G21+G22) -> 0 | H17: =COUNTIF(ahlamine!H10:H70,"<16")-(H18+H19+H20+H21+H22) -> 6 | I17: =COUNTIF(ahlamine!I10:I70,"<16")-(I18+I19+I20+I21+I22) -> 3 | J17: =COUNTIF(ahlamine!J10:J70,"<16")-(J18+J19+J20+J21+J22) -> 2 | K17: =COUNTIF(ahlamine!K10:K70,"<16")-(K18+K19+K20+K21+K22) -> 1 | L17: =COUNTIF(ahlamine!L10:L70,"<16")-(L18+L19+L20+L21+L22) -> 0 | M17: =COUNTIF(ahlamine!M10:M70,"<16")-(M18+M19+M20+M21+M22) -> 8 | N17: =COUNTIF(ahlamine!N10:N70,"<16")-(N18+N19+N20+N21+N22) -> 6 | O17: =COUNTIF(ahlamine!O10:O70,"<16")-(O18+O19+O20+O21+O22) -> 0 | P17: =COUNTIF(ahlamine!P10:P70,"<16")-(P18+P19+P20+P21+P22) -> 14 | Q17: =COUNTIF(ahlamine!Q10:Q70,"<16")-(Q18+Q19+Q20+Q21+Q22) -> 3 | R17: =COUNTIF(ahlamine!R10:R70,"<16")-(R18+R19+R20+R21+R22) -> 0 | S17: =COUNTIF(ahlamine!S10:S70,"<16")-(S18+S19+S20+S21+S22) -> 0 | T17: =COUNTIF(ahlamine!T10:T70,"<16")-(T18+T19+T20+T21+T22) -> 0 | U17: =COUNTIF(ahlamine!U10:U70,"<16")-(U18+U19+U20+U21+U22) -> 0 | V17: =COUNTIF(ahlamine!V10:V70,"<16")-(V18+V19+V20+V21+V22) -> 0
C18: ما بين 12 و 14 | E18: =COUNTIF(ahlamine!E10:E70,"<14")-(E19+E20+E21+E22) -> 4 | F18: =COUNTIF(ahlamine!F10:F70,"<14")-(F19+F20+F21+F22) -> 3 | G18: =COUNTIF(ahlamine!G10:G70,"<14")-(G19+G20+G21+G22) -> 0 | H18: =COUNTIF(ahlamine!H10:H70,"<14")-(H19+H20+H21+H22) -> 6 | I18: =COUNTIF(ahlamine!I10:I70,"<14")-(I19+I20+I21+I22) -> 2 | J18: =COUNTIF(ahlamine!J10:J70,"<14")-(J19+J20+J21+J22) -> 4 | K18: =COUNTIF(ahlamine!K10:K70,"<14")-(K19+K20+K21+K22) -> 2 | L18: =COUNTIF(ahlamine!L10:L70,"<14")-(L19+L20+L21+L22) -> 0 | M18: =COUNTIF(ahlamine!M10:M70,"<14")-(M19+M20+M21+M22) -> 6 | N18: =COUNTIF(ahlamine!N10:N70,"<14")-(N19+N20+N21+N22) -> 4 | O18: =COUNTIF(ahlamine!O10:O70,"<14")-(O19+O20+O21+O22) -> 0 | P18: =COUNTIF(ahlamine!P10:P70,"<14")-(P19+P20+P21+P22) -> 8 | Q18: =COUNTIF(ahlamine!Q10:Q70,"<14")-(Q19+Q20+Q21+Q22) -> 5 | R18: =COUNTIF(ahlamine!R10:R70,"<14")-(R19+R20+R21+R22) -> 0 | S18: =COUNTIF(ahlamine!S10:S70,"<14")-(S19+S20+S21+S22) -> 0 | T18: =COUNTIF(ahlamine!T10:T70,"<14")-(T19+T20+T21+T22) -> 0 | U18: =COUNTIF(ahlamine!U10:U70,"<14")-(U19+U20+U21+U22) -> 0 | V18: =COUNTIF(ahlamine!V10:V70,"<14")-(V19+V20+V21+V22) -> 0
C19: ما بين 10 و 12 | E19: =COUNTIF(ahlamine!E10:E70,"<12")-(E20+E21+E22) -> 4 | F19: =COUNTIF(ahlamine!F10:F70,"<12")-(F20+F21+F22) -> 4 | G19: =COUNTIF(ahlamine!G10:G70,"<12")-(G20+G21+G22) -> 0 | H19: =COUNTIF(ahlamine!H10:H70,"<12")-(H20+H21+H22) -> 7 | I19: =COUNTIF(ahlamine!I10:I70,"<12")-(I20+I21+I22) -> 6 | J19: =COUNTIF(ahlamine!J10:J70,"<12")-(J20+J21+J22) -> 4 | K19: =COUNTIF(ahlamine!K10:K70,"<12")-(K20+K21+K22) -> 5 | L19: =COUNTIF(ahlamine!L10:L70,"<12")-(L20+L21+L22) -> 0 | M19: =COUNTIF(ahlamine!M10:M70,"<12")-(M20+M21+M22) -> 6 | N19: =COUNTIF(ahlamine!N10:N70,"<12")-(N20+N21+N22) -> 2 | O19: =COUNTIF(ahlamine!O10:O70,"<12")-(O20+O21+O22) -> 0 | P19: =COUNTIF(ahlamine!P10:P70,"<12")-(P20+P21+P22) -> 0 | Q19: =COUNTIF(ahlamine!Q10:Q70,"<12")-(Q20+Q21+Q22) -> 12 | R19: =COUNTIF(ahlamine!R10:R70,"<12")-(R20+R21+R22) -> 0 | S19: =COUNTIF(ahlamine!S10:S70,"<12")-(S20+S21+S22) -> 0 | T19: =COUNTIF(ahlamine!T10:T70,"<12")-(T20+T21+T22) -> 0 | U19: =COUNTIF(ahlamine!U10:U70,"<12")-(U20+U21+U22) -> 0 | V19: =COUNTIF(ahlamine!V10:V70,"<12")-(V20+V21+V22) -> 0
C20: 10 | E20: =COUNTIF(ahlamine!E10:E70,"=10") -> 2 | F20: =COUNTIF(ahlamine!F10:F70,"=10") -> 1 | G20: =COUNTIF(ahlamine!G10:G70,"=10") -> 0 | H20: =COUNTIF(ahlamine!H10:H70,"=10") -> 2 | I20: =COUNTIF(ahlamine!I10:I70,"=10") -> 1 | J20: =COUNTIF(ahlamine!J10:J70,"=10") -> 1 | K20: =COUNTIF(ahlamine!K10:K70,"=10") -> 0 | L20: =COUNTIF(ahlamine!L10:L70,"=10") -> 0 | M20: =COUNTIF(ahlamine!M10:M70,"=10") -> 1 | N20: =COUNTIF(ahlamine!N10:N70,"=10") -> 1 | O20: =COUNTIF(ahlamine!O10:O70,"=10") -> 0 | P20: =COUNTIF(ahlamine!P10:P70,"=10") -> 0 | Q20: =COUNTIF(ahlamine!Q10:Q70,"=10") -> 0 | R20: =COUNTIF(ahlamine!R10:R70,"=10") -> 0 | S20: =COUNTIF(ahlamine!S10:S70,"=10") -> 0 | T20: =COUNTIF(ahlamine!T10:T70,"=10") -> 0 | U20: =COUNTIF(ahlamine!U10:U70,"=10") -> 0 | V20: =COUNTIF(ahlamine!V10:V70,"=10") -> 0
A21: تنويه | B21: =COUNTIF(ahla1,A21) -> 1 | C21: ما بين 8 و 10 | E21: =COUNTIF(ahlamine!E10:E70,"<10")-E22 -> 5 | F21: =COUNTIF(ahlamine!F10:F70,"<10")-F22 -> 3 | G21: =COUNTIF(ahlamine!G10:G70,"<10")-G22 -> 0 | H21: =COUNTIF(ahlamine!H10:H70,"<10")-H22 -> 3 | I21: =COUNTIF(ahlamine!I10:I70,"<10")-I22 -> 5 | J21: =COUNTIF(ahlamine!J10:J70,"<10")-J22 -> 1 | K21: =COUNTIF(ahlamine!K10:K70,"<10")-K22 -> 3 | L21: =COUNTIF(ahlamine!L10:L70,"<10")-L22 -> 0 | M21: =COUNTIF(ahlamine!M10:M70,"<10")-M22 -> 5 | N21: =COUNTIF(ahlamine!N10:N70,"<10")-N22 -> 1 | O21: =COUNTIF(ahlamine!O10:O70,"<10")-O22 -> 0 | P21: =COUNTIF(ahlamine!P10:P70,"<10")-P22 -> 0 | Q21: =COUNTIF(ahlamine!Q10:Q70,"<10")-Q22 -> 11 | R21: =COUNTIF(ahlamine!R10:R70,"<10")-R22 -> 0 | S21: =COUNTIF(ahlamine!S10:S70,"<10")-S22 -> 0 | T21: =COUNTIF(ahlamine!T10:T70,"<10")-T22 -> 0 | U21: =COUNTIF(ahlamine!U10:U70,"<10")-U22 -> 0 | V21: =COUNTIF(ahlamine!V10:V70,"<10")-V22 -> 0
A22: تشجيع | B22: 3 | C22: أقل من 8 | E22: =COUNTIF(ahlamine!E10:E70,"<=8") -> 14 | F22: =COUNTIF(ahlamine!F10:F70,"<=8") -> 20 | G22: =COUNTIF(ahlamine!G10:G70,"<=8") -> 0 | H22: =COUNTIF(ahlamine!H10:H70,"<=8") -> 8 | I22: =COUNTIF(ahlamine!I10:I70,"<=8") -> 17 | J22: =COUNTIF(ahlamine!J10:J70,"<=8") -> 21 | K22: =COUNTIF(ahlamine!K10:K70,"<=8") -> 19 | L22: =COUNTIF(ahlamine!L10:L70,"<=8") -> 0 | M22: =COUNTIF(ahlamine!M10:M70,"<=8") -> 3 | N22: =COUNTIF(ahlamine!N10:N70,"<=8") -> 4 | O22: =COUNTIF(ahlamine!O10:O70,"<=8") -> 0 | P22: =COUNTIF(ahlamine!P10:P70,"<=8") -> 0 | Q22: =COUNTIF(ahlamine!Q10:Q70,"<=8") -> 3 | R22: =COUNTIF(ahlamine!R10:R70,"<=8") -> 0 | S22: =COUNTIF(ahlamine!S10:S70,"<=8") -> 0 | T22: =COUNTIF(ahlamine!T10:T70,"<=8") -> 0 | U22: =COUNTIF(ahlamine!U10:U70,"<=8") -> 0 | V22: =COUNTIF(ahlamine!V10:V70,"<=8") -> 0
A23: لوحة الشرف | B23: 5 | C23: الحاصلون على 0 | E23: =COUNTIF(ahlamine!E10:E70,"=0") -> 0 | F23: =COUNTIF(ahlamine!F10:F70,"=0") -> 0 | G23: =COUNTIF(ahlamine!G10:G70,"=0") -> 0 | H23: =COUNTIF(ahlamine!H10:H70,"=0") -> 0 | I23: =COUNTIF(ahlamine!I10:I70,"=0") -> 0 | J23: =COUNTIF(ahlamine!J10:J70,"=0") -> 0 | K23: =COUNTIF(ahlamine!K10:K70,"=0") -> 0 | L23: =COUNTIF(ahlamine!L10:L70,"=0") -> 0 | M23: =COUNTIF(ahlamine!M10:M70,"=0") -> 0 | N23: =COUNTIF(ahlamine!N10:N70,"=0") -> 0 | O23: =COUNTIF(ahlamine!O10:O70,"=0") -> 0 | P23: =COUNTIF(ahlamine!P10:P70,"=0") -> 0 | Q23: =COUNTIF(ahlamine!Q10:Q70,"=0") -> 0 | R23: =COUNTIF(ahlamine!R10:R70,"=0") -> 0 | S23: =COUNTIF(ahlamine!S10:S70,"=0") -> 0 | T23: =COUNTIF(ahlamine!T10:T70,"=0") -> 0 | U23: =COUNTIF(ahlamine!U10:U70,"=0") -> 0 | V23: =COUNTIF(ahlamine!V10:V70,"=0") -> 0
A24: تنبيه | B24: 3 | C24: الحاصلون على أقل من 10 | E24: =SUM(E21:E23) -> 19 | F24: =SUM(F21:F23) -> 23 | G24: 0 | H24: 11 | I24: 22 | J24: 22 | K24: 22 | L24: 0 | M24: 8 | N24: 5 | O24: 0 | P24: 0 | Q24: 14 | R24: 0 | S24: 0 | T24: 0 | U24: 0 | V24: 0
A25: إنذار | B25: 0 | C25: الحاصلون على أكثر من 10 | E25: =SUM(E16:E20) -> 16 | F25: =SUM(F16:F20) -> 12 | G25: 0 | H25: 24 | I25: 13 | J25: 13 | K25: 13 | L25: 0 | M25: 27 | N25: 30 | O25: 0 | P25: 35 | Q25: 21 | R25: 0 | S25: 0 | T25: 0 | U25: 0 | V25: 0
A26: توبيخ | B26: 0 | C26: المعدل الملاحظ | E26: =AVERAGE(ahlamine!E10:E70) -> 9.4 | F26: =AVERAGE(ahlamine!F10:F70) -> 8.614285714 | G26: =AVERAGE(ahlamine!G10:G70) ->  | H26: =AVERAGE(ahlamine!H10:H70) -> 11.28571429 | I26: =AVERAGE(ahlamine!I10:I70) -> 8.542857143 | J26: =AVERAGE(ahlamine!J10:J70) -> 7.307142857 | K26: =AVERAGE(ahlamine!K10:K70) -> 9.121428571 | L26: =AVERAGE(ahlamine!L10:L70) ->  | M26: =AVERAGE(ahlamine!M10:M70) -> 12.54285714 | N26: =AVERAGE(ahlamine!N10:N70) -> 14.47142857 | O26: =AVERAGE(ahlamine!O10:O70) ->  | P26: =AVERAGE(ahlamine!P10:P70) -> 14.78571429 | Q26: =AVERAGE(ahlamine!Q10:Q70) -> 10.67457143 | R26: =AVERAGE(ahlamine!R10:R70) ->  | S26: =AVERAGE(ahlamine!S10:S70) ->  | T26: =AVERAGE(ahlamine!T10:T70) ->  | U26: =AVERAGE(ahlamine!U10:U70) ->  | V26: =AVERAGE(ahlamine!V10:V70) -> 
A27: التحكم في الكفايات | C27: غير متحكم | E27: =COUNTIF(ahlamine!E10:E70,"<10") -> 19 | F27: =COUNTIF(ahlamine!F10:F70,"<10") -> 23 | G27: =COUNTIF(ahlamine!G10:G70,"<10") -> 0 | H27: =COUNTIF(ahlamine!H10:H70,"<10") -> 11 | I27: =COUNTIF(ahlamine!I10:I70,"<10") -> 22 | J27: =COUNTIF(ahlamine!J10:J70,"<10") -> 22 | K27: =COUNTIF(ahlamine!K10:K70,"<10") -> 22 | L27: =COUNTIF(ahlamine!L10:L70,"<10") -> 0 | M27: =COUNTIF(ahlamine!M10:M70,"<10") -> 8 | N27: =COUNTIF(ahlamine!N10:N70,"<10") -> 5 | O27: =COUNTIF(ahlamine!O10:O70,"<10") -> 0 | P27: =COUNTIF(ahlamine!P10:P70,"<10") -> 0 | Q27: =COUNTIF(ahlamine!Q10:Q70,"<10") -> 14 | R27: =COUNTIF(ahlamine!R10:R70,"<10") -> 0 | S27: =COUNTIF(ahlamine!S10:S70,"<10") -> 0 | T27: =COUNTIF(ahlamine!T10:T70,"<10") -> 0 | U27: =COUNTIF(ahlamine!U10:U70,"<10") -> 0 | V27: =COUNTIF(ahlamine!V10:V70,"<10") -> 0
C28: نسبة غيرالمتحكمين | E28: =E27/$F$11 -> 0.5428571429 | F28: =F27/$F$11 -> 0.6571428571 | G28: =G27/$F$11 -> 0 | H28: =H27/$F$11 -> 0.3142857143 | I28: =I27/$F$11 -> 0.6285714286 | J28: =J27/$F$11 -> 0.6285714286 | K28: =K27/$F$11 -> 0.6285714286 | L28: =L27/$F$11 -> 0 | M28: =M27/$F$11 -> 0.2285714286 | N28: =N27/$F$11 -> 0.1428571429 | O28: =O27/$F$11 -> 0 | P28: =P27/$F$11 -> 0 | Q28: =Q27/$F$11 -> 0.4 | R28: =R27/$F$11 -> 0 | S28: =S27/$F$11 -> 0 | T28: =T27/$F$11 -> 0 | U28: =U27/$F$11 -> 0 | V28: =V27/$F$11 -> 0
C29: متوسط | E29: =COUNTIF(ahlamine!E10:E70,"<12")-E27 -> 6 | F29: =COUNTIF(ahlamine!F10:F70,"<12")-F27 -> 5 | G29: =COUNTIF(ahlamine!G10:G70,"<12")-G27 -> 0 | H29: =COUNTIF(ahlamine!H10:H70,"<12")-H27 -> 9 | I29: =COUNTIF(ahlamine!I10:I70,"<12")-I27 -> 7 | J29: =COUNTIF(ahlamine!J10:J70,"<12")-J27 -> 5 | K29: =COUNTIF(ahlamine!K10:K70,"<12")-K27 -> 5 | L29: =COUNTIF(ahlamine!L10:L70,"<12")-L27 -> 0 | M29: =COUNTIF(ahlamine!M10:M70,"<12")-M27 -> 7 | N29: =COUNTIF(ahlamine!N10:N70,"<12")-N27 -> 3 | O29: =COUNTIF(ahlamine!O10:O70,"<12")-O27 -> 0 | P29: =COUNTIF(ahlamine!P10:P70,"<12")-P27 -> 0 | Q29: =COUNTIF(ahlamine!Q10:Q70,"<12")-Q27 -> 12 | R29: =COUNTIF(ahlamine!R10:R70,"<12")-R27 -> 0 | S29: =COUNTIF(ahlamine!S10:S70,"<12")-S27 -> 0 | T29: =COUNTIF(ahlamine!T10:T70,"<12")-T27 -> 0 | U29: =COUNTIF(ahlamine!U10:U70,"<12")-U27 -> 0 | V29: =COUNTIF(ahlamine!V10:V70,"<12")-V27 -> 0
C30: نسبة متوسط | E30: =E29/$F$11 -> 0.1714285714 | F30: =F29/$F$11 -> 0.1428571429 | G30: =G29/$F$11 -> 0 | H30: =H29/$F$11 -> 0.2571428571 | I30: =I29/$F$11 -> 0.2 | J30: =J29/$F$11 -> 0.1428571429 | K30: =K29/$F$11 -> 0.1428571429 | L30: =L29/$F$11 -> 0 | M30: =M29/$F$11 -> 0.2 | N30: =N29/$F$11 -> 0.08571428571 | O30: =O29/$F$11 -> 0 | P30: =P29/$F$11 -> 0 | Q30: =Q29/$F$11 -> 0.3428571429 | R30: =R29/$F$11 -> 0 | S30: =S29/$F$11 -> 0 | T30: =T29/$F$11 -> 0 | U30: =U29/$F$11 -> 0 | V30: =V29/$F$11 -> 0
C31: متحكم | E31: =COUNTIF(ahlamine!E10:E70,">=12") -> 10 | F31: =COUNTIF(ahlamine!F10:F70,">=12") -> 7 | G31: =COUNTIF(ahlamine!G10:G70,">=12") -> 0 | H31: =COUNTIF(ahlamine!H10:H70,">=12") -> 15 | I31: =COUNTIF(ahlamine!I10:I70,">=12") -> 6 | J31: =COUNTIF(ahlamine!J10:J70,">=12") -> 8 | K31: =COUNTIF(ahlamine!K10:K70,">=12") -> 8 | L31: =COUNTIF(ahlamine!L10:L70,">=12") -> 0 | M31: =COUNTIF(ahlamine!M10:M70,">=12") -> 20 | N31: =COUNTIF(ahlamine!N10:N70,">=12") -> 27 | O31: =COUNTIF(ahlamine!O10:O70,">=12") -> 0 | P31: =COUNTIF(ahlamine!P10:P70,">=12") -> 35 | Q31: =COUNTIF(ahlamine!Q10:Q70,">=12") -> 9 | R31: =COUNTIF(ahlamine!R10:R70,">=12") -> 0 | S31: =COUNTIF(ahlamine!S10:S70,">=12") -> 0 | T31: =COUNTIF(ahlamine!T10:T70,">=12") -> 0 | U31: =COUNTIF(ahlamine!U10:U70,">=12") -> 0 | V31: =COUNTIF(ahlamine!V10:V70,">=12") -> 0
C32: نسبة المتحكمين | E32: =E31/$F$11 -> 0.2857142857 | F32: =F31/$F$11 -> 0.2 | G32: =G31/$F$11 -> 0 | H32: =H31/$F$11 -> 0.4285714286 | I32: =I31/$F$11 -> 0.1714285714 | J32: =J31/$F$11 -> 0.2285714286 | K32: =K31/$F$11 -> 0.2285714286 | L32: =L31/$F$11 -> 0 | M32: =M31/$F$11 -> 0.5714285714 | N32: =N31/$F$11 -> 0.7714285714 | O32: =O31/$F$11 -> 0 | P32: =P31/$F$11 -> 1 | Q32: =Q31/$F$11 -> 0.2571428571 | R32: =R31/$F$11 -> 0 | S32: =S31/$F$11 -> 0 | T32: =T31/$F$11 -> 0 | U32: =U31/$F$11 -> 0 | V32: =V31/$F$11 -> 0

Sheet Feuil1 (hidden)
A1: أهلمين
G2: https://web.facebook.com/mohammed.ahlamine.7 | O2: tel: 0667177403
B3: من مسار حمل معدلات المراقبة المستمرة و الإمتحان لأقسامك المسندة كما هي..إجمعهم في ملف واحد مع تطبيقي هذا
B4: إفتح التطبيق و فعل الرسائل الماكرو و تابع العمليات بالترتيب جلب+تعديل+الإستثمار...وعدل منطقة الطباعة بحرية وسهولة ...مبروك عليك
